fUST/lending_fUST_20260316
["ID","MTS","AMOUNT","RATE_DAILY","PERIOD"]
[408451634,1773655844415,-352677.85661658,0.00012,2]
[408451635,1773655844431,-1522.28706012,0.00012,2]
[408451636,1773655844454,-940.67625209,0.00012,2]
[408451637,1773655844652,-6423.94677741,9.309e-05,2]
[408451638,1773655844664,-671.77936835,9.309e-05,2]
[408451639,1773655844675,-334.50618891,9.309e-05,2]
[408451640,1773655844685,-3590.45463159,0.00012,2]
[408451641,1773655845043,-466949.74575076,0.00012,2]
[408451642,1773655845054,-54241.40157432,0.00012,2]
[408451643,1773655845069,-2500.01141009,0.00012,2]
[408451644,1773655845081,-1563.83098617,0.00012,2]
[408451652,1773655846595,-145238.6081619,0.00012,2]
[408451653,1773655846607,-1481.92119548,0.00012,2]
[408451654,1773655846807,-8671.88640455,0.00012,2]
[408451655,1773655846819,-9378.05889422,0.00012,2]
[408451656,1773655846830,-2503.60319108,0.00012,2]
[408451657,1773655846840,-365.71046143,0.00012,2]
[408451658,1773655846850,-232.26466729,0.0001204,7]
[408451659,1773655846859,-15380.3736,0.00012055,2]
[408451660,1773655846869,-463.88740828,0.0001206,2]
[408451661,1773655846878,-211.94718734,0.00012068,2]
[408451662,1773655846888,-2312.83697232,0.00012082,2]
[408451663,1773655846897,-578.20924308,0.00012082,2]
[408451664,1773655846906,-10000.0,0.00012164,2]
[408451665,1773655846916,-13641.63392325,0.00012281,2]
[408451666,1773655846925,-214.76655,0.00012345,2]
[408451667,1773655846935,-5000.0,0.000124,7]
[408451668,1773655846944,-196.130752,0.00012416,2]
[408451669,1773655846954,-2287.215019,0.00012417,2]
[408451670,1773655846964,-159.54,0.00012495,2]
[408451671,1773655846974,-2398.4119403,0.0001263,2]
[408451672,1773655846983,-599.60298507,0.0001263,2]
[408451673,1773655846992,-1493.3,0.000129,2]
[408451674,1773655847002,-893.995,0.00012989,2]
[408451675,1773655847013,-19136.94430202,0.00013,2]
[408451676,1773655847023,-1000.0,0.0001303,2]
[408451677,1773655847032,-8056.29646654,0.00013073,2]
[408451684,1773656402121,160.6,2e-05,2]
[408451714,1773657024788,-935.38546244,2.113e-05,2]
[408451734,1773657031595,-876.86326639,2.113e-05,2]
[408451736,1773657031608,-1127.74715667,2.113e-05,2]
[408451801,1773657037756,-2060.0041145,2.113e-05,2]
[408451802,1773657037766,-160.6,2.2e-05,2]
[408451803,1773657037775,-2981.72834935,9.268e-05,2]
[408451804,1773657037784,-1018.909987,9.281e-05,2]
[408451805,1773657037793,-300.0,9.364e-05,2]
[408451806,1773657037803,-7353.51948519,9.368e-05,2]
[408451807,1773657037812,-9499.62403673,9.468e-05,2]
[408451808,1773657037825,-17408.93467287,9.469e-05,2]
[408451809,1773657037836,-300.0,9.569e-05,2]
[408451810,1773657037846,-300.0,9.569e-05,2]
[408451811,1773657037856,-300.0,9.569e-05,2]
[408451812,1773657037866,-300.0,9.569e-05,2]
[408451813,1773657037876,-300.0,9.569e-05,2]
[408451814,1773657037886,-300.0,9.569e-05,2]
[408451815,1773657037895,-300.0,9.569e-05,2]
[408451816,1773657037905,-300.0,9.569e-05,2]
[408451817,1773657037914,-300.0,9.569e-05,2]
[408451818,1773657037923,-300.0,9.569e-05,2]
[408451819,1773657037932,-300.0,9.569e-05,2]
[408451820,1773657037942,-300.0,9.569e-05,2]
[408451821,1773657037951,-300.0,9.569e-05,2]
[408451822,1773657037960,-300.0,9.569e-05,2]
[408451823,1773657037971,-300.0,9.569e-05,2]
[408451824,1773657037980,-12255.30270004,9.668e-05,2]
[408451825,1773657037991,-501.69342998,9.67e-05,2]
[408451826,1773657038000,-16097.10175688,9.868e-05,2]
[408451827,1773657038010,-500.0,9.967e-05,2]
[408451828,1773657038019,-500.0,9.967e-05,2]
[408451829,1773657038029,-500.0,9.967e-05,2]
[408451830,1773657038040,-500.0,9.967e-05,2]
[408451831,1773657038050,-500.0,9.967e-05,2]
[408451832,1773657038059,-500.0,9.967e-05,2]
[408451833,1773657038069,-333.61701951,9.967e-05,2]
[408451834,1773657038080,-500.0,9.967e-05,2]
[408451835,1773657038099,-500.0,9.967e-05,2]
[408451836,1773657038108,-500.0,9.967e-05,2]
[408451837,1773657038117,-500.0,9.967e-05,2]
[408451838,1773657038127,-500.0,9.967e-05,2]
[408451839,1773657038137,-500.0,9.967e-05,2]
[408451840,1773657038146,-500.0,9.967e-05,2]
[408451841,1773657038156,-500.0,9.967e-05,2]
[408451842,1773657038426,-500.0,9.967e-05,2]
[408451843,1773657038436,-500.0,9.967e-05,2]
[408451844,1773657038445,-17766.66002689,9.968e-05,2]
[408451845,1773657038454,-537.6845,0.00010638,2]
[408451846,1773657038463,-2150.738,0.00010638,2]
[408451847,1773657038473,-160.0,0.00010918,2]
[408451848,1773657038482,-151.0,0.00011,2]
[408451849,1773657038491,-151.0,0.00011,2]
[408451850,1773657038501,-162.0,0.00011,14]
[408451851,1773657038510,-557.5788265,0.00011186,2]
[408451852,1773657038519,-2230.315306,0.00011186,2]
[408451853,1773657038528,-151.0,0.000112,2]
[408451854,1773657038538,-151.0,0.000112,2]
[408451855,1773657038547,-20276.2959525,0.00011291,2]
[408451856,1773657038556,-151.0,0.000115,2]
[408451857,1773657038565,-151.0,0.000115,2]
[408451858,1773657038574,-365.0,0.000116,2]
[408451859,1773657038583,-151.0,0.000117,2]
[408451860,1773657038592,-151.0,0.000117,2]
[408451861,1773657038601,-578.20924308,0.00011734,2]
[408451862,1773657038611,-2254.64323971,0.00011734,2]
[408451863,1773657038627,-58.19373261,0.00011734,2]
[408451864,1773657038637,-151.0,0.000119,2]
[408451865,1773657038647,-151.0,0.000119,2]
[408451866,1773657038656,-2186.0,0.00011955,2]
[408451867,1773657038665,-640.0,0.00011955,2]
[408451868,1773657038674,-1391.0,0.00011955,2]
[408451869,1773657038683,-438.0,0.00011955,2]
[408451870,1773657038693,-536.451,0.00011955,2]
[408451871,1773657038702,-810.147,0.00011955,2]
[408451872,1773657038711,-183.0,0.00011955,2]
[408451873,1773657038721,-588.608,0.00012055,2]
[408451874,1773657038730,-178.734852,0.00012141,2]
[408451875,1773657038740,-600.0,0.00012193,2]
[408451876,1773657038749,-151.0,0.000122,2]
[408451877,1773657038758,-151.0,0.000122,2]
[408451878,1773657038767,-581.26355244,0.00012282,2]
[408451879,1773657038776,-2398.4119403,0.00012282,2]
[408451880,1773657038785,-151.0,0.000124,2]
[408451881,1773657038794,-151.0,0.000124,2]
[408451882,1773657038803,-151.0,0.000126,2]
[408451883,1773657038812,-151.0,0.000126,2]
[408451884,1773657038820,-2487.15318209,0.0001283,2]
[408451885,1773657038830,-151.0,0.000129,2]
[408451886,1773657038839,-800.0,0.000129,2]
[408451887,1773657038848,-400.0,0.000129,3]
[408451888,1773657038858,-151.0,0.000129,2]
[408451889,1773657038866,-3676.81469567,0.000129,2]
[408451890,1773657038875,-3676.81469565,0.000129,2]
[408451891,1773657038884,-1304.00617104,0.00013073,2]
[408451892,1773657038894,-499.97,0.000131,2]
[408451893,1773657038903,-151.0,0.000131,2]
[408451894,1773657038915,-151.0,0.000131,2]
[408451895,1773657038924,-151.0,0.000133,2]
[408451896,1773657038934,-151.0,0.000133,2]
[408451897,1773657038943,-151.0,0.000133,2]
[408451898,1773657038952,-151.0,0.000133,2]
[408451899,1773657038962,-151.0,0.000133,2]
[408451900,1773657038972,-151.0,0.000133,2]
[408451901,1773657038983,-151.0,0.000133,2]
[408451902,1773657038994,-151.0,0.000133,2]
[408451903,1773657039004,-151.0,0.000133,2]
[408451904,1773657039015,-151.0,0.000133,2]
[408451905,1773657039024,-5569.16085425,0.00013325,2]
[408451906,1773657039036,-1520.08874999,0.00013325,2]
[408451907,1773657039046,-5056.49508421,0.00013325,2]
[408451908,1773657039057,-2849.8060003,0.00013325,2]
[408451952,1773657040278,-869.33744737,0.00013059,2]
[408451954,1773657040288,-37676.62370201,0.00013325,2]
[408452025,1773657043006,-695.7,0.00013325,2]
[408452026,1773657043017,-247435.0985674,0.00013325,2]
[408452027,1773657043028,-207758.59167427,0.00013325,2]
[408452035,1773657045805,-20546.75023963,0.00013325,2]
[408452038,1773657602125,161.2,2e-05,2]
[408452066,1773658231871,-3402.70388487,8.83e-05,2]
[408452068,1773658231881,-545.0,8.919e-05,2]
[408452070,1773658231890,-453.5361151,9.083e-05,2]
[408452075,1773658231925,-17.3498849,9.083e-05,2]
[408452077,1773658231934,-169.99539987,9.1e-05,2]
[408452079,1773658231943,-214.05190942,9.1e-05,2]
[408452081,1773658231953,-77.74426317,9.1e-05,2]
[408452083,1773658231965,-125.86447155,9.1e-05,2]
[408452085,1773658231975,-210.81146869,9.1e-05,2]
[408452087,1773658231984,-287.0,9.166e-05,2]
[408452089,1773658231994,-500.0,9.167e-05,2]
[408452091,1773658232004,-500.0,9.167e-05,2]
[408452093,1773658232013,-500.0,9.167e-05,2]
[408452095,1773658232023,-500.0,9.167e-05,2]
[408452097,1773658232032,-500.0,9.167e-05,2]
[408452099,1773658232042,-500.0,9.167e-05,2]
[408452101,1773658232051,-500.0,9.167e-05,2]
[408452103,1773658232060,-500.0,9.167e-05,2]
[408452105,1773658232069,-500.0,9.167e-05,2]
[408452107,1773658232079,-500.0,9.167e-05,2]
[408452109,1773658232088,-500.0,9.167e-05,2]
[408452111,1773658232097,-500.0,9.167e-05,2]
[408452113,1773658232106,-480.5429879,9.167e-05,2]
[408452115,1773658232116,-500.0,9.167e-05,2]
[408452117,1773658232125,-500.0,9.167e-05,2]
[408452119,1773658232134,-500.0,9.167e-05,2]
[408452121,1773658232143,-500.0,9.167e-05,2]
[408452123,1773658232152,-632.47490756,9.167e-05,2]
[408452125,1773658232162,-500.0,9.167e-05,2]
[408452127,1773658232171,-500.0,9.167e-05,2]
[408452129,1773658232180,-492.80709141,9.167e-05,2]
[408452189,1773658237992,-7.19290859,9.167e-05,2]
[408452190,1773658238002,-500.0,9.167e-05,2]
[408452191,1773658238011,-500.0,9.167e-05,2]
[408452192,1773658238021,-500.0,9.167e-05,2]
[408452193,1773658238032,-500.0,9.167e-05,2]
[408452194,1773658238041,-500.0,9.167e-05,2]
[408452195,1773658238050,-500.0,9.167e-05,2]
[408452196,1773658238059,-500.0,9.167e-05,2]
[408452197,1773658238069,-500.0,9.167e-05,2]
[408452198,1773658238078,-500.0,9.167e-05,2]
[408452199,1773658238088,-500.0,9.167e-05,2]
[408452200,1773658238098,-500.0,9.167e-05,2]
[408452201,1773658238107,-500.0,9.167e-05,2]
[408452202,1773658238116,-500.0,9.167e-05,2]
[408452203,1773658238126,-354.12902225,9.167e-05,2]
[408452204,1773658238136,-500.0,9.167e-05,2]
[408452205,1773658238146,-508.46637778,9.167e-05,2]
[408452206,1773658238155,-500.0,9.167e-05,2]
[408452207,1773658238164,-500.0,9.167e-05,2]
[408452208,1773658238174,-41.52324493,9.167e-05,2]
[408452209,1773658238189,-458.47675507,9.167e-05,2]
[408452210,1773658238198,-500.0,9.167e-05,2]
[408452211,1773658238207,-500.0,9.167e-05,2]
[408452212,1773658238216,-500.0,9.167e-05,2]
[408452213,1773658238226,-500.0,9.167e-05,2]
[408452214,1773658238235,-257.75489969,9.167e-05,2]
[408452215,1773658238247,-242.24510031,9.167e-05,2]
[408452216,1773658238257,-254.05206296,9.167e-05,2]
[408452217,1773658238266,-500.0,9.167e-05,2]
[408452218,1773658238275,-500.0,9.167e-05,2]
[408452219,1773658238284,-500.0,9.167e-05,2]
[408452220,1773658238296,-213.18619736,9.167e-05,2]
[408452221,1773658238305,-500.0,9.167e-05,2]
[408452222,1773658238315,-207.37359992,9.167e-05,2]
[408452223,1773658238324,-500.0,9.167e-05,2]
[408452224,1773658238333,-500.0,9.167e-05,2]
[408452225,1773658238343,-500.0,9.167e-05,2]
[408452226,1773658238352,-500.0,9.167e-05,2]
[408452227,1773658238362,-500.0,9.167e-05,2]
[408452228,1773658238372,-500.0,9.167e-05,2]
[408452229,1773658238381,-103.2792724,9.167e-05,2]
[408452230,1773658238394,-396.7207276,9.167e-05,2]
[408452231,1773658238404,-500.0,9.167e-05,2]
[408452232,1773658238414,-500.0,9.167e-05,2]
[408452233,1773658238424,-500.0,9.167e-05,2]
[408452234,1773658238435,-500.0,9.167e-05,2]
[408452235,1773658238446,-500.0,9.167e-05,2]
[408452236,1773658238455,-500.0,9.167e-05,2]
[408452237,1773658238464,-500.0,9.167e-05,2]
[408452238,1773658238475,-500.0,9.167e-05,2]
[408452239,1773658238484,-500.0,9.167e-05,2]
[408452240,1773658238493,-500.0,9.167e-05,2]
[408452241,1773658238504,-54453.03973535,9.168e-05,2]
[408452242,1773658238516,-500.0,9.243e-05,2]
[408452243,1773658238526,-501.04139984,9.243e-05,2]
[408452244,1773658238535,-500.25906464,9.243e-05,2]
[408452245,1773658238546,-500.0,9.243e-05,2]
[408452246,1773658238556,-500.0,9.243e-05,2]
[408452247,1773658238566,-500.0,9.243e-05,2]
[408452248,1773658238576,-500.0,9.267e-05,2]
[408452249,1773658238585,-239.13799146,9.267e-05,2]
[408452250,1773658238594,-500.0,9.267e-05,2]
[408452251,1773658238604,-500.0,9.267e-05,2]
[408452252,1773658238614,-500.0,9.267e-05,2]
[408452253,1773658238623,-500.0,9.267e-05,2]
[408452254,1773658238632,-500.0,9.267e-05,2]
[408452255,1773658238642,-500.0,9.267e-05,2]
[408452256,1773658238651,-639.67165026,9.267e-05,2]
[408452257,1773658238662,-500.0,9.267e-05,2]
[408452258,1773658238672,-500.0,9.267e-05,2]
[408452259,1773658238681,-500.0,9.267e-05,2]
[408452260,1773658238691,-500.0,9.267e-05,2]
[408452261,1773658238700,-500.0,9.267e-05,2]
[408452262,1773658238712,-500.0,9.267e-05,2]
[408452263,1773658238723,-200.0,9.267e-05,2]
[408452264,1773658238733,-72524.9392461,9.268e-05,2]
[408452316,1773658240253,-523.75236559,9.268e-05,2]
[408452318,1773658240264,-7909.01872154,9.268e-05,2]
[408452324,1773658240310,-4619.85572465,9.268e-05,2]
[408452326,1773658240321,-1258.43671265,9.268e-05,2]
[408452329,1773658240332,-2581.06503238,9.268e-05,2]
[408452508,1773658243078,-813.5,9.268e-05,2]
[408452509,1773658243183,-16325.12467085,9.268e-05,2]
[408452510,1773658243195,-285.0,9.268e-05,2]
[408452527,1773658245994,-8252.81907666,9.268e-05,2]
[408452528,1773658246007,-11884.971555,9.268e-05,2]
[408452536,1773658631130,1000.0,0.0001,30]
[408452537,1773658631154,333.41046762,0.0001,30]
[408452541,1773658803180,160.6,2e-05,2]
[408452546,1773658873582,-160.6,2.2e-05,2]
[408452553,1773659199785,666.58953238,0.0001,30]
[408452554,1773659199808,833.41046762,0.0001,30]
[408452587,1773659431975,-250.5264,8.887e-05,2]
[408452592,1773659432029,-237.2266,8.887e-05,2]
[408452594,1773659432038,-15.86209634,8.887e-05,2]
[408452596,1773659432050,-529.13790366,8.887e-05,2]
[408452598,1773659432059,-3810.45470985,8.9e-05,2]
[408452600,1773659432068,-9768.59332335,8.9e-05,2]
[408452602,1773659432078,-7918.9680771,8.9e-05,2]
[408452605,1773659432087,-79.24598604,8.9e-05,2]
[408452608,1773659432098,-566.01503087,8.9e-05,2]
[408452901,1773659438094,-2505.41777256,8.9e-05,2]
[408452902,1773659438106,-5693.1019107,8.9e-05,2]
[408452903,1773659438115,-6324.17871268,8.9e-05,2]
[408452904,1773659438127,-3085.69266073,8.9e-05,2]
[408452905,1773659438136,-181.38610084,8.966e-05,2]
[408452906,1773659438145,-45.36608478,8.966e-05,2]
[408452913,1773659440394,-454.63391522,8.966e-05,2]
[408452914,1773659440405,-500.0,8.966e-05,2]
[408452915,1773659440414,-500.0,8.966e-05,2]
[408452916,1773659440424,-245.26373333,8.966e-05,2]
[408452917,1773659440433,-194.89467366,8.966e-05,2]
[408452918,1773659440443,-500.0,8.966e-05,2]
[408452919,1773659440452,-171.31861974,8.966e-05,2]
[408452920,1773659440462,-500.0,8.966e-05,2]
[408452921,1773659440472,-500.0,8.967e-05,2]
[408452922,1773659440482,-500.0,8.967e-05,2]
[408452923,1773659440492,-500.0,8.967e-05,2]
[408452924,1773659440505,-500.0,8.967e-05,2]
[408452925,1773659440514,-500.0,8.967e-05,2]
[408452926,1773659440525,-500.0,8.967e-05,2]
[408452927,1773659440535,-336.67345476,8.967e-05,2]
[408452928,1773659440545,-569.273158,8.967e-05,2]
[408452929,1773659440555,-500.0,8.967e-05,2]
[408452930,1773659440564,-500.0,8.967e-05,2]
[408452931,1773659440574,-500.0,8.967e-05,2]
[408452932,1773659440583,-500.0,8.967e-05,2]
[408452933,1773659440592,-500.0,8.967e-05,2]
[408452934,1773659440602,-500.0,8.967e-05,2]
[408452935,1773659440611,-500.0,8.967e-05,2]
[408452936,1773659440621,-600.0,8.967e-05,2]
[408452937,1773659440630,-10557.9455791,8.968e-05,2]
[408452952,1773659443163,-644.0,8.968e-05,2]
[408452953,1773659443174,-350.47765549,8.968e-05,2]
[408453004,1773659446161,-5174.0,8.867e-05,2]
[408453005,1773659446173,-348.01294213,8.867e-05,2]
[408453018,1773660002484,154.29,2e-05,2]
[408453019,1773660002752,154.29,2e-05,2]
[408453020,1773660003020,154.29,2e-05,2]
[408453021,1773660003311,154.29,2e-05,2]
[408453029,1773660602320,152.0,2e-05,2]
[408453041,1773660632103,-4771.86183991,7.712e-05,2]
[408453043,1773660632113,-1144.57058013,7.79e-05,2]
[408453045,1773660632123,-530.0,7.79e-05,2]
[408453047,1773660632138,-2118.18514059,7.932e-05,2]
[408453049,1773660632147,-4733.83012133,8.032e-05,2]
[408453051,1773660632156,-1436.55231804,8.132e-05,2]
[408453054,1773660632167,-1089.23622439,8.132e-05,2]
[408453173,1773660638298,-2692.63218365,8.132e-05,2]
[408453174,1773660638308,-615.7082186,8.232e-05,2]
[408453175,1773660638353,-4628.0876939,8.232e-05,2]
[408453176,1773660638362,-5753.76170375,8.332e-05,2]
[408453177,1773660638372,-5142.89293429,8.556e-05,2]
[408453178,1773660638381,-500.0,8.556e-05,2]
[408453179,1773660638391,-500.0,8.556e-05,2]
[408453180,1773660638400,-500.0,8.556e-05,2]
[408453181,1773660638410,-598.4912106,8.556e-05,2]
[408453182,1773660638420,-500.0,8.556e-05,2]
[408453183,1773660638429,-500.0,8.556e-05,2]
[408453184,1773660638439,-500.0,8.556e-05,2]
[408453185,1773660638448,-500.0,8.556e-05,2]
[408453186,1773660638457,-500.0,8.556e-05,2]
[408453187,1773660638466,-500.0,8.556e-05,2]
[408453188,1773660638475,-92.90333255,8.556e-05,2]
[408453258,1773660640837,-407.09666745,8.556e-05,2]
[408453260,1773660640847,-191.28206886,8.556e-05,2]
[408453262,1773660640856,-405.67141833,8.556e-05,2]
[408453264,1773660640865,-390.202,8.556e-05,2]
[408453266,1773660640874,-3236.66913587,8.557e-05,2]
[408453294,1773660643528,-7250.30172655,8.557e-05,2]
[408453298,1773660646330,-2366.16330444,8.471e-05,2]
[408453317,1773661802802,160.6,2e-05,2]
[408453318,1773661803129,160.6,2e-05,2]
[408453341,1773661832284,-2633.83669556,6.389e-05,2]
[408453343,1773661832294,-218.58662236,6.454e-05,2]
[408453345,1773661832303,-512.0,6.454e-05,2]
[408453346,1773661832313,-3855.41402871,8.225e-05,2]
[408453350,1773661832336,-441.70512035,8.225e-05,2]
[408453736,1773661840897,-613.51737384,8.225e-05,2]
[408453737,1773661840907,-543.4415993,8.493e-05,2]
[408453738,1773661840916,-497.0,8.5e-05,2]
[408453739,1773661840925,-539.78353472,9e-05,2]
[408453740,1773661840935,-178.734852,9.064e-05,2]
[408453741,1773661840944,-6263.727495,9.214e-05,2]
[408453742,1773661840954,-543.4415993,9.51e-05,2]
[408453743,1773661840964,-320.95586393,9.873e-05,2]
[408453744,1773661840978,-500.0,9.873e-05,2]
[408453745,1773661840987,-502.12966442,9.873e-05,2]
[408453746,1773661840997,-500.28086512,9.873e-05,2]
[408453747,1773661841006,-234.51974017,9.873e-05,2]
[408453750,1773661843543,-265.94609039,9.873e-05,2]
[408453751,1773661843555,-500.0,9.873e-05,2]
[408453752,1773661843564,-165.38602304,9.873e-05,2]
[408453757,1773661846403,-348.13192769,9.873e-05,2]
[408453758,1773661846412,-512.23355888,9.873e-05,2]
[408453759,1773661846422,-500.0,9.873e-05,2]
[408453760,1773661846431,-500.0,9.899e-05,2]
[408453761,1773661846440,-500.0,9.899e-05,2]
[408453762,1773661846449,-24.59717321,9.899e-05,2]
[408453908,1773663002646,161.2,2e-05,2]
[408453974,1773663032705,-3787.05642125,8.086e-05,2]
[408454115,1773663038589,-1212.94357875,8.086e-05,2]
[408454116,1773663038599,-222.30376846,8.168e-05,2]
[408454117,1773663038609,-539.0,8.512e-05,2]
[408454118,1773663038618,-300.0,8.681e-05,2]
[408454119,1773663038629,-300.0,8.681e-05,2]
[408454120,1773663038639,-300.0,8.681e-05,2]
[408454121,1773663038648,-300.0,8.681e-05,2]
[408454122,1773663038657,-300.0,8.681e-05,2]
[408454123,1773663038666,-300.0,8.681e-05,2]
[408454124,1773663038675,-300.0,8.681e-05,2]
[408454125,1773663038687,-300.0,8.681e-05,2]
[408454126,1773663038696,-300.0,8.681e-05,2]
[408454127,1773663038706,-300.0,8.681e-05,2]
[408454128,1773663038716,-300.0,8.681e-05,2]
[408454129,1773663038725,-300.0,8.681e-05,2]
[408454130,1773663038734,-300.0,8.681e-05,2]
[408454131,1773663038743,-300.0,8.681e-05,2]
[408454132,1773663038753,-300.0,8.681e-05,2]
[408454133,1773663038762,-500.0,9.431e-05,2]
[408454134,1773663038772,-408.02659058,9.431e-05,2]
[408454135,1773663038781,-163.15637005,9.6e-05,2]
[408454136,1773663038790,-192.14951291,9.6e-05,2]
[408454137,1773663038799,-185.27512523,9.6e-05,2]
[408454138,1773663038809,-190.01293194,9.6e-05,2]
[408454139,1773663038818,-508.579,9.6e-05,2]
[408454140,1773663038829,-185.47565488,9.6e-05,2]
[408454141,1773663038841,-618.94384742,9.672e-05,2]
[408454142,1773663038851,-213171.04221766,9.673e-05,2]
[408454143,1773663038860,-501.01903105,9.673e-05,2]
[408454144,1773663038870,-501.27365363,9.673e-05,2]
[408454145,1773663038881,-500.53652176,9.673e-05,2]
[408454146,1773663038891,-500.0,9.673e-05,2]
[408454147,1773663038900,-500.0,9.673e-05,2]
[408454148,1773663038910,-502.25818475,9.673e-05,2]
[408454149,1773663038920,-186.88137484,9.673e-05,2]
[408454150,1773663038929,-500.0,9.673e-05,2]
[408454151,1773663038939,-500.07150662,9.673e-05,2]
[408454152,1773663038948,-500.6362831,9.673e-05,2]
[408454153,1773663038958,-500.0,9.673e-05,2]
[408454154,1773663038967,-500.17443823,9.673e-05,2]
[408454155,1773663038976,-501.49139279,9.673e-05,2]
[408454156,1773663038986,-500.0,9.673e-05,2]
[408454157,1773663038995,-2150.738,9.694e-05,2]
[408454158,1773663039004,-536481.72758144,9.7e-05,2]
[408454159,1773663039017,-2957.94987597,9.7e-05,2]
[408454160,1773663039031,-24514.72309898,9.7e-05,2]
[408454175,1773663041013,-469.07870949,9.603e-05,2]
[408454176,1773663041025,-752.23301139,9.603e-05,2]
[408454185,1773663043857,-2581.92492425,9.603e-05,2]
[408454196,1773663046709,-10750.4236104,9.603e-05,2]
[408454197,1773663046719,-51591.70596448,9.7e-05,2]
[408454198,1773663046730,-6691.6046171,9.7e-05,2]
[408454199,1773663240901,300.0,7.935e-05,120]
[408454200,1773663243028,300.0,7.935e-05,120]
[408454201,1773663244778,300.0,7.935e-05,120]
[408454202,1773663246557,300.0,7.935e-05,120]
[408454203,1773663248313,300.0,7.935e-05,120]
[408454204,1773663250048,300.0,7.935e-05,120]
[408454205,1773663251778,300.0,7.935e-05,120]
[408454206,1773663253514,300.0,7.935e-05,120]
[408454207,1773663255246,300.0,7.935e-05,120]
[408454208,1773663256987,131.745433,7.935e-05,120]
[408454209,1773663257015,168.254567,7.935e-05,120]
[408454210,1773663258712,300.0,7.935e-05,120]
[408454211,1773663260428,300.0,7.935e-05,120]
[408454212,1773663262175,300.0,7.935e-05,120]
[408454213,1773663263894,300.0,7.935e-05,120]
[408454214,1773663265618,300.0,7.935e-05,120]
[408454215,1773663267402,300.0,7.935e-05,120]
[408454216,1773663269142,300.0,7.935e-05,120]
[408454217,1773663270884,300.0,7.935e-05,120]
[408454218,1773663272628,300.0,7.935e-05,120]
[408454219,1773663274340,131.745433,7.935e-05,120]
[408454220,1773663274367,168.254567,7.935e-05,120]
[408454221,1773663276112,300.0,7.935e-05,120]
[408454222,1773663277853,300.0,7.935e-05,120]
[408454223,1773663279565,300.0,7.935e-05,120]
[408454224,1773663281384,300.0,7.935e-05,120]
[408454225,1773663283125,300.0,7.935e-05,120]
[408454226,1773663284882,300.0,7.935e-05,120]
[408454227,1773663286596,300.0,7.935e-05,120]
[408454228,1773663288643,300.0,7.935e-05,120]
[408454229,1773663290361,300.0,7.935e-05,120]
[408454230,1773663291302,131.745433,0.000102,120]
[408454231,1773663291342,19.254567,0.000102,120]
[408454232,1773663292100,300.0,7.935e-05,120]
[408454233,1773663293833,300.0,7.935e-05,120]
[408454234,1773663295577,300.0,7.935e-05,120]
[408454235,1773663297328,300.0,7.935e-05,120]
[408454236,1773663299065,300.0,7.935e-05,120]
[408454237,1773663300924,300.0,7.935e-05,120]
[408454238,1773663302678,300.0,7.935e-05,120]
[408454239,1773663304400,300.0,7.935e-05,120]
[408454240,1773663306125,300.0,7.935e-05,120]
[408454241,1773663308233,280.745433,7.935e-05,120]
[408454242,1773663308257,19.254567,7.935e-05,120]
[408454243,1773663309960,300.0,7.935e-05,120]
[408454244,1773663311685,300.0,7.935e-05,120]
[408454245,1773663313402,300.0,7.935e-05,120]
[408454246,1773663315133,300.0,7.935e-05,120]
[408454247,1773663316877,300.0,7.935e-05,120]
[408454248,1773663318643,300.0,7.935e-05,120]
[408454249,1773663320370,300.0,7.935e-05,120]
[408454250,1773663322104,300.0,7.935e-05,120]
[408454251,1773663323810,179.54,7.935e-05,120]
[408454252,1773663404873,151.0,0.0001,24]
[408454253,1773663406209,15.58953238,0.0001,24]
[408454254,1773663406235,135.41046762,0.0001,24]
[408454255,1773663407655,151.0,0.0001,24]
[408454256,1773663446614,151.0,0.0001,23]
[408454257,1773663477451,151.0,0.0001,23]
[408454258,1773663517987,151.0,0.0001,23]